bitfinex/quotes_BTCUSD_20230118
["timestamp","ask_amount","ask_price","bid_price","bid_amount"]
[1674029409153,0.00942797,21301.0,21299.0,0.1102]
[1674029409951,0.46839692,21300.0,21299.0,0.1055032]
[1674029410497,0.46839692,21300.0,21298.0,0.0319742]
[1674029410764,0.46839692,21300.0,21299.0,0.006]
[1674029411020,0.46839692,21300.0,21298.0,0.0319742]
[1674029411280,0.46939692,21300.0,21298.0,0.0319742]
[1674029411630,0.46839692,21300.0,21298.0,0.0319742]
[1674029412299,0.46839692,21300.0,21298.0,0.5414972]
[1674029412558,0.46839692,21300.0,21298.0,0.0719742]
[1674029412815,0.46839692,21300.0,21298.0,0.1821742]
[1674029413328,0.46839692,21300.0,21298.0,0.6516982]
[1674029414634,0.46839692,21300.0,21298.0,0.1824118]
[1674029414892,0.46839692,21300.0,21298.0,0.6519388]
[1674029417151,0.00842797,21301.0,21298.0,0.6519388]
[1674029417961,0.00842797,21301.0,21299.0,0.1102]
[1674029418436,0.00942797,21301.0,21299.0,0.1102]
[1674029419458,0.00942797,21301.0,21300.0,0.2193]
[1674029419724,0.00842797,21301.0,21300.0,0.2193]
[1674029419978,0.00942797,21301.0,21300.0,0.2193]
[1674029420235,0.00842797,21301.0,21300.0,0.2193]
[1674029420524,0.00942797,21301.0,21300.0,0.2253]
[1674029422783,0.00942797,21301.0,21300.0,0.116]
[1674029430591,0.00942797,21301.0,21300.0,0.006]
[1674029431107,0.11178797,21301.0,21300.0,0.006]
[1674029431375,2.05835809,21301.0,21300.0,0.006]
[1674029431629,3.7616229,21301.0,21300.0,0.006]
[1674029431899,3.65565857,21301.0,21300.0,0.006]
[1674029432194,3.77667028,21301.0,21300.0,0.006]
[1674029432449,4.05794955,21301.0,21300.0,0.006]
[1674029432977,3.83292613,21301.0,21300.0,0.006]
[1674029433241,3.27483583,21301.0,21300.0,0.006]
[1674029433493,4.18503797,21301.0,21300.0,0.006]
[1674029433747,4.66763797,21301.0,21300.0,0.006]
[1674029434524,5.13709897,21301.0,21300.0,0.006]
[1674029434828,5.13709897,21301.0,21300.0,0.00591736]
[1674029436881,5.41814182,21301.0,21300.0,0.00591736]
[1674029437942,5.13709897,21301.0,21300.0,0.00591736]
[1674029438732,5.41808338,21301.0,21300.0,0.00591736]
[1674029439250,5.13709897,21301.0,21300.0,0.00591736]
[1674029439510,5.4550546,21301.0,21300.0,0.001]
[1674029439761,5.17406992,21301.0,21300.0,0.001]
[1674029440022,5.45505613,21301.0,21300.0,0.001]
[1674029440779,5.67982013,21301.0,21300.0,0.001]
[1674029441029,5.45505613,21301.0,21300.0,0.001]
[1674029441310,5.17406992,21301.0,21300.0,0.001]
[1674029444251,5.17406992,21301.0,21300.0,0.000759]
[1674029444782,4.69326775,21301.0,21300.0,0.000759]
[1674029450473,4.9739856,21301.0,21300.0,0.000759]
[1674029450743,5.19854786,21301.0,21300.0,0.000759]
[1674029451496,4.9739856,21301.0,21300.0,0.000759]
[1674029452777,4.8644856,21301.0,21300.0,0.000759]
[1674029453307,5.33858777,21301.0,21300.0,0.000759]
[1674029453810,5.86281851,21301.0,21300.0,0.000759]
[1674029454061,5.69230066,21301.0,21300.0,0.000759]
[1674029455363,5.64527161,21301.0,21300.0,0.000759]
[1674029455610,5.69230066,21301.0,21300.0,0.000759]
[1674029456120,5.97293654,21301.0,21300.0,0.000759]
[1674029456371,5.69230066,21301.0,21300.0,0.000759]
[1674029456627,5.97293255,21301.0,21300.0,0.000759]
[1674029458256,5.61312733,21301.0,21300.0,0.000759]
[1674029458987,5.50087917,21301.0,21300.0,0.000759]
[1674029459253,4.46408594,21301.0,21300.0,0.000759]
[1674029459510,3.24425935,21301.0,21300.0,0.000759]
[1674029459772,2.76165935,21301.0,21300.0,0.000759]
[1674029459998,2.60816081,21301.0,21300.0,0.000759]
[1674029460294,3.98158474,21301.0,21300.0,0.000759]
[1674029460559,4.37290934,21301.0,21300.0,0.000759]
[1674029460892,4.28158474,21301.0,21300.0,0.000759]
[1674029461358,4.1132035,21301.0,21300.0,0.000759]
[1674029461627,4.39383539,21301.0,21300.0,0.000759]
[1674029462920,4.16933844,21301.0,21300.0,0.000759]
[1674029463177,4.39397004,21301.0,21300.0,0.000759]
[1674029463497,4.86807221,21301.0,21300.0,0.000759]
[1674029464244,4.64344061,21301.0,21300.0,0.000759]
[1674029464747,4.36280872,21301.0,21300.0,0.000759]
[1674029467564,5.28774554,21301.0,21300.0,0.000759]
[1674029468866,5.04232959,21301.0,21300.0,0.000759]
[1674029469113,5.84781804,21301.0,21300.0,0.000759]
[1674029469366,4.65325867,21301.0,21300.0,0.000759]
[1674029469627,5.14402905,21301.0,21300.0,0.00068193]
[1674029469932,6.33858842,21301.0,21300.0,0.00068193]
[1674029470629,5.38941237,21301.0,21300.0,0.00068193]
[1674029470893,5.14227464,21301.0,21300.0,0.00068193]
[1674029471146,6.3276409,21301.0,21300.0,0.00068193]
[1674029471664,5.85353873,21301.0,21300.0,0.00068193]
[1674029472165,6.23326575,21301.0,21300.0,0.00068193]
[1674029472412,6.3893948,21301.0,21300.0,0.00068193]
[1674029472917,7.08939481,21301.0,21300.0,0.00068193]
[1674029474998,6.70966779,21301.0,21300.0,0.00068193]
[1674029475844,6.66263874,21301.0,21300.0,0.00068193]
[1674029476383,5.96263873,21301.0,21300.0,0.00068193]
[1674029478077,6.34236575,21301.0,21300.0,0.00068193]
[1674029478882,6.23216575,21301.0,21300.0,0.00068193]
[1674029479366,5.7467995,21301.0,21300.0,0.00068193]
[1674029479636,6.93216576,21301.0,21300.0,0.00068193]
[1674029480417,7.14219281,21301.0,21300.0,0.00068193]
[1674029481495,7.14739282,21301.0,21300.0,0.00068193]
[1674029482261,6.7676658,21301.0,21300.0,0.00068193]
[1674029482830,7.58832785,21301.0,21300.0,0.00068193]
[1674029483040,7.20816782,21301.0,21300.0,0.00068193]
[1674029483572,7.14782818,21301.0,21300.0,0.00068193]
[1674029485137,6.7676658,21301.0,21300.0,0.00068193]
[1674029485643,6.06766579,21301.0,21300.0,0.00068193]
[1674029486156,6.44782817,21301.0,21300.0,0.00068193]
[1674029486371,6.06766579,21301.0,21300.0,0.00068193]
[1674029486899,6.44782817,21301.0,21300.0,0.00068193]
[1674029487669,6.92193034,21301.0,21300.0,0.00068193]
[1674029487937,7.62193035,21301.0,21300.0,0.00068193]
[1674029488709,7.24176797,21301.0,21300.0,0.00068193]
[1674029489229,7.35196797,21301.0,21300.0,0.00068193]
[1674029490271,7.34276797,21301.0,21300.0,0.00068193]
[1674029491037,7.34276797,21301.0,21300.0,0.05646089]
[1674029492727,7.23366797,21301.0,21300.0,0.05646089]
[1674029493287,6.7595658,21301.0,21300.0,0.05646089]
[1674029494088,7.13963276,21301.0,21300.0,0.05646089]
[1674029494343,6.7595658,21301.0,21300.0,0.05646089]
[1674029494589,7.13963254,21301.0,21300.0,0.05646089]
[1674029495337,7.13963254,21301.0,21300.0,8.9e-07]
[1674029495622,0.15,21300.0,21293.0,0.15]
[1674029495923,0.11260695,21294.0,21292.0,0.4301]
[1674029496170,1.45187995,21293.0,21292.0,0.1093]
[1674029496433,1.42999995,21293.0,21292.0,0.1093]
[1674029496681,1.239274,21293.0,21292.0,0.1093]
[1674029497217,0.939274,21293.0,21292.0,0.1143]
[1674029497442,0.939274,21293.0,21292.0,0.1093]
[1674029497704,0.947274,21293.0,21292.0,0.1143]
[1674029500124,0.477637,21293.0,21292.0,0.1143]
[1674029500382,0.477637,21293.0,21292.0,0.11596274]
[1674029501447,0.008,21293.0,21292.0,0.11596274]
[1674029502210,0.008,21293.0,21292.0,0.1143]
[1674029502498,0.008,21293.0,21292.0,0.11596274]
[1674029502744,0.008,21293.0,21292.0,0.22616274]
[1674029504003,0.008,21293.0,21292.0,0.2245]
[1674029505073,0.008,21293.0,21292.0,0.22458314]
[1674029507323,0.467634,21294.0,21292.0,0.22458314]
[1674029507628,0.467634,21294.0,21293.0,0.1102]
[1674029508125,0.469613,21295.0,21293.0,0.11500242]
[1674029508380,0.469613,21295.0,21294.0,0.1102]
[1674029509410,0.6299643,21297.0,21294.0,0.1102]
[1674029509674,0.04779035,21297.0,21296.0,0.22]
[1674029509945,0.53873003,21297.0,21296.0,0.1102]
[1674029510244,0.49093968,21297.0,21296.0,0.1102]
[1674029510489,0.96048868,21297.0,21296.0,0.1102]
[1674029510751,0.48103968,21297.0,21296.0,0.1102]
[1674029511262,0.47103968,21297.0,21296.0,0.1102]
[1674029511518,0.47903968,21297.0,21296.0,0.1102]
[1674029511773,0.47103968,21297.0,21296.0,0.1102]
[1674029512030,0.47903968,21297.0,21296.0,0.1222]
[1674029512262,0.47523968,21297.0,21296.0,0.1222]
[1674029512768,0.47523968,21297.0,21296.0,0.2315]
[1674029513027,0.94478868,21297.0,21296.0,0.2315]
[1674029513287,0.94148868,21297.0,21296.0,0.2315]
[1674029513839,1.24148868,21297.0,21296.0,0.012]
[1674029514115,1.34739563,21297.0,21296.0,0.012]
[1674029514396,1.81694463,21297.0,21296.0,0.012]
[1674029515178,2.75629017,21297.0,21296.0,0.012]
[1674029515950,1.81694463,21297.0,21296.0,0.012]
[1674029517584,0.477549,21297.0,21296.0,0.2313]
[1674029518968,0.947098,21297.0,21296.0,0.2313]
[1674029520606,0.944498,21297.0,21296.0,0.2313]
[1674029522425,1.244498,21297.0,21296.0,0.2313]
[1674029522949,1.244498,21297.0,21296.0,0.122]
[1674029523733,1.244498,21297.0,21296.0,0.012]
[1674029524010,1.35710495,21297.0,21296.0,0.012]
[1674029527085,2.62011317,21297.0,21296.0,0.012]
[1674029529137,2.89152519,21297.0,21296.0,0.012]
[1674029529388,3.42444376,21297.0,21296.0,0.012]
[1674029529640,3.21508913,21297.0,21296.0,0.012]
[1674029529889,3.53696913,21297.0,21296.0,0.012]
[1674029530170,3.21508913,21297.0,21296.0,0.012]
[1674029530433,3.48074723,21297.0,21296.0,0.012]
[1674029530708,3.76226461,21297.0,21296.0,0.012]
[1674029531542,3.44038461,21297.0,21296.0,0.012]
[1674029534731,3.32767547,21297.0,21296.0,0.012]
[1674029535174,3.02767224,21297.0,21296.0,0.012]
[1674029535184,2.59134724,21297.0,21296.0,0.012]
[1674029535433,2.42254223,21297.0,21296.0,0.012]
[1674029535697,2.59134724,21297.0,21296.0,0.012]
[1674029536300,2.72254223,21297.0,21296.0,0.012]
[1674029536789,1.78317953,21297.0,21296.0,0.012]
[1674029537051,2.72251372,21297.0,21296.0,0.012]
[1674029537304,2.72254307,21297.0,21296.0,0.012]
[1674029537610,2.89134808,21297.0,21296.0,0.012]
[1674029537886,2.88997567,21297.0,21296.0,0.012]
[1674029539731,2.58997567,21297.0,21296.0,0.012]
[1674029539984,2.42117066,21297.0,21296.0,0.012]
[1674029540255,2.72117066,21297.0,21296.0,0.012]
[1674029540751,2.88997567,21297.0,21296.0,0.012]
[1674029541295,2.77744125,21297.0,21296.0,0.012]
[1674029541763,2.89001907,21297.0,21296.0,0.012]
[1674029542280,2.72121406,21297.0,21296.0,0.012]
[1674029543084,2.89001907,21297.0,21296.0,0.012]
[1674029544194,2.77744125,21297.0,21296.0,0.012]
[1674029544742,2.89002665,21297.0,21296.0,0.012]
[1674029545007,2.89002519,21297.0,21296.0,0.012]
[1674029545598,2.77744125,21297.0,21296.0,0.012]
[1674029546396,3.00265515,21297.0,21296.0,0.012]
[1674029546683,3.32630067,21297.0,21296.0,0.012]
[1674029546951,3.15749566,21297.0,21296.0,0.012]
[1674029549071,3.48744266,21297.0,21296.0,0.012]
[1674029549350,3.76659704,21297.0,21296.0,0.012]
[1674029549601,3.43901304,21297.0,21296.0,0.012]
[1674029550143,3.75756304,21297.0,21296.0,0.012]
[1674029550407,3.74889004,21297.0,21296.0,0.012]
[1674029550676,3.52367614,21297.0,21296.0,0.012]
[1674029550934,3.83476093,21297.0,21296.0,0.012]
[1674029551214,3.36065876,21297.0,21296.0,0.012]
[1674029553035,3.64214664,21297.0,21296.0,0.012]
[1674029553641,3.31850112,21297.0,21296.0,0.012]
[1674029553900,3.27589514,21297.0,21296.0,0.012]
[1674029554159,3.27589514,21297.0,21291.0,0.1102]
[1674029554160,3.58215514,21297.0,21291.0,0.1102]
[1674029554418,0.11259097,21295.0,21291.0,0.1102]
[1674029554720,1.12996595,21294.0,21291.0,0.15067187]
[1674029554947,1.12996595,21294.0,21291.0,0.1102]
[1674029555235,1.24255692,21294.0,21291.0,0.1102]
[1674029555496,1.05183097,21294.0,21291.0,0.1102]
[1674029555760,1.05183097,21294.0,21291.0,0.1152]
[1674029556029,1.05183097,21294.0,21291.0,0.1102]
[1674029556286,0.94724,21294.0,21291.0,0.1152]
[1674029556835,1.05983097,21294.0,21291.0,0.1152]
[1674029558163,0.94724,21294.0,21293.0,0.1102]
[1674029559436,0.93924,21294.0,21293.0,0.1102]
[1674029559964,1.06083097,21294.0,21293.0,0.005]
[1674029560210,0.94824,21294.0,21293.0,0.005]
[1674029561363,0.94824,21294.0,21293.0,0.1152]
[1674029562885,0.94824,21294.0,21293.0,0.005]
[1674029563441,1.24824,21294.0,21293.0,0.005]
[1674029563989,0.94824,21294.0,21293.0,0.005]
[1674029565515,1.06083097,21294.0,21293.0,0.005]
[1674029565787,2.45029193,21294.0,21293.0,0.005]
[1674029566290,2.61917838,21294.0,21293.0,0.005]
[1674029566543,2.46917838,21294.0,21293.0,0.005]
[1674029567351,2.30029193,21294.0,21293.0,0.005]
[1674029568367,2.46917838,21294.0,21293.0,0.005]
[1674029568609,2.30029193,21294.0,21293.0,0.005]
[1674029569131,2.46917838,21294.0,21293.0,0.005]
[1674029569898,2.58176935,21294.0,21293.0,0.005]
[1674029570695,2.58174241,21294.0,21293.0,0.005]
[1674029570955,3.66571232,21294.0,21293.0,0.005]
[1674029571211,3.33954195,21294.0,21293.0,0.005]
[1674029573396,3.56453738,21294.0,21293.0,0.005]
[1674029573653,3.33954195,21294.0,21293.0,0.005]
[1674029574758,2.90794684,21294.0,21293.0,0.00490386]
[1674029575046,3.26046315,21294.0,21293.0,0.00490386]
[1674029575305,3.25146315,21294.0,21289.0,0.01236763]
[1674029575613,0.11250522,21291.0,21289.0,0.01236763]
[1674029575877,0.54998922,21290.0,21289.0,0.01236763]
[1674029576136,2.146596,21290.0,21289.0,0.01236763]
[1674029576652,2.40910122,21290.0,21289.0,0.01236763]
[1674029577482,2.08181722,21290.0,21289.0,0.01236763]
[1674029577777,2.29479,21290.0,21289.0,0.01236763]
[1674029578035,2.29879,21290.0,21289.0,0.01636763]
[1674029578303,3.13354088,21290.0,21289.0,0.01636763]
[1674029578557,3.45993188,21290.0,21289.0,0.01636763]
[1674029578839,2.79504853,21290.0,21289.0,0.01636763]
[1674029579108,3.13542753,21290.0,21289.0,0.01636763]
[1674029579373,2.79504853,21290.0,21289.0,0.01636763]
[1674029579643,3.10632153,21290.0,21289.0,0.01636763]
[1674029579903,3.35306599,21290.0,21289.0,0.01636763]
[1674029580169,2.64504853,21290.0,21289.0,0.01636763]
[1674029580421,2.94000753,21290.0,21289.0,0.01636763]
[1674029580942,2.64504853,21290.0,21289.0,0.01636763]
[1674029581206,2.94789353,21290.0,21289.0,0.01636763]
[1674029581696,2.64360383,21290.0,21289.0,0.01636763]
[1674029581918,2.64504853,21290.0,21289.0,0.01636763]
[1674029582200,2.96339253,21290.0,21289.0,0.01636763]
[1674029582507,2.21399483,21290.0,21289.0,0.01636763]
[1674029583913,2.87477453,21290.0,21289.0,0.01636763]
[1674029584175,2.55392083,21290.0,21289.0,0.01636763]
[1674029584441,2.53329683,21290.0,21289.0,0.01636763]
[1674029584745,2.21399483,21290.0,21289.0,0.01636763]
[1674029585004,2.53614783,21290.0,21289.0,0.01636763]
[1674029585785,2.21399483,21290.0,21289.0,0.01636763]
[1674029586047,1.43579083,21290.0,21289.0,0.01636763]
[1674029587976,0.96608683,21290.0,21289.0,0.01636763]
[1674029588230,0.96608683,21290.0,21289.0,0.12566763]
[1674029588536,0.49638283,21290.0,21289.0,0.12566763]
[1674029589357,0.004,21290.0,21289.0,0.12566763]
[1674029589621,0.004,21290.0,21289.0,0.23595491]
[1674029589894,0.004,21290.0,21289.0,0.81488091]
[1674029590697,0.004,21290.0,21289.0,1.28460691]
[1674029590951,0.49226055,21293.0,21289.0,1.28060691]
[1674029591244,0.006,21290.0,21289.0,1.16737878]
[1674029591478,0.006,21290.0,21289.0,1.45660691]
[1674029592003,0.49226055,21293.0,21289.0,1.43160691]
[1674029592239,0.49466055,21293.0,21292.0,0.2201]
[1674029592492,0.48766055,21293.0,21292.0,0.2201]
[1674029593014,0.469621,21294.0,21292.0,0.2201]
[1674029593308,0.93480278,21296.0,21293.0,0.1102]
[1674029593541,0.93480278,21296.0,21295.0,0.1102]
[1674029593861,1.40437378,21296.0,21295.0,0.10812598]
[1674029594828,1.71037378,21296.0,21295.0,0.11512598]
[1674029596136,1.70747378,21296.0,21295.0,0.11512598]
[1674029596654,1.819979,21296.0,21295.0,0.11512598]
[1674029596918,3.24906017,21296.0,21295.0,0.007]
[1674029597183,3.46730895,21296.0,21295.0,0.007]
[1674029597432,3.57970158,21296.0,21295.0,0.007]
[1674029597689,3.46730895,21296.0,21295.0,0.007]
[1674029598524,3.6923194,21296.0,21295.0,0.007]
[1674029599281,3.57970199,21296.0,21295.0,0.007]
[1674029599541,3.46730895,21296.0,21295.0,0.007]
[1674029600610,3.6923194,21296.0,21295.0,0.007]
[1674029602135,3.3700654,21296.0,21295.0,0.007]
[1674029602359,3.6836034,21296.0,21295.0,0.007]
[1674029603121,3.7938034,21296.0,21295.0,0.007]
[1674029603376,3.62504556,21296.0,21295.0,0.007]
[1674029604661,3.90630862,21296.0,21295.0,0.007]
[1674029605710,4.38041079,21296.0,21295.0,0.007]
[1674029606794,4.09914773,21296.0,21295.0,0.007]
[1674029607775,4.38041079,21296.0,21295.0,0.007]
[1674029608282,3.90630862,21296.0,21295.0,0.007]
[1674029608815,3.79139817,21296.0,21295.0,0.007]
[1674029609059,3.90139817,21296.0,21295.0,0.007]
[1674029609395,4.69319817,21296.0,21295.0,0.007]
[1674029610705,4.41193511,21296.0,21295.0,0.007]
[1674029611202,4.50205553,21296.0,21295.0,0.007]
[1674029611478,4.97925722,21296.0,21295.0,0.007]
[1674029613526,5.31707808,21296.0,21295.0,0.007]
[1674029613792,5.31707808,21296.0,21295.0,0.00230257]
[1674029614324,5.22695766,21296.0,21295.0,0.00230257]
[1674029614635,5.27398671,21296.0,21295.0,0.00230257]
[1674029615464,5.68256581,21296.0,21295.0,0.00230257]
[1674029615729,7.05430684,21296.0,21289.0,0.01236763]
[1674029616032,0.2203,21290.0,21289.0,0.01236763]
[1674029616302,2.76549465,21290.0,21289.0,0.01236763]
[1674029616568,2.67368694,21290.0,21289.0,0.01236763]
[1674029617351,2.73468694,21290.0,21289.0,0.01236763]
[1674029617868,3.96099477,21290.0,21289.0,0.01236763]
[1674029618139,4.4281581,21290.0,21289.0,0.01236763]
[1674029618441,4.67734178,21290.0,21289.0,0.01236763]
[1674029618652,5.67561951,21290.0,21289.0,0.01236763]
[1674029618936,5.49773007,21290.0,21289.0,0.01236763]
[1674029619502,6.33674944,21290.0,21289.0,6.763e-05]
[1674029620004,0.39619675,21289.0,21288.0,0.01353574]
[1674029620261,3.04839404,21289.0,21288.0,0.01353574]
[1674029620528,3.27311343,21289.0,21288.0,0.01353574]
[1674029620788,3.19839404,21289.0,21288.0,0.01353574]
[1674029621057,3.51619098,21289.0,21288.0,0.01353574]
[1674029621325,2.83890043,21289.0,21288.0,0.01353574]
[1674029621585,3.03125735,21289.0,21288.0,0.01353574]
[1674029621846,3.26513434,21289.0,21288.0,0.01353574]
[1674029622414,4.29780584,21289.0,21288.0,0.01353574]
[1674029622674,2.16897571,21289.0,21288.0,0.01353574]
[1674029622927,2.14766182,21289.0,21288.0,0.01353574]
[1674029623216,2.25997571,21289.0,21288.0,0.01353574]
[1674029623514,1.8808294,21289.0,21288.0,0.01353574]
[1674029624320,2.00949097,21289.0,21288.0,0.01353574]
[1674029624590,2.47717755,21289.0,21288.0,0.01353574]
[1674029624876,2.84039772,21289.0,21288.0,0.01353574]
[1674029625209,3.00880153,21289.0,21288.0,0.01353574]
[1674029625728,2.73705652,21289.0,21288.0,0.01353574]
[1674029625992,3.74467253,21289.0,21288.0,0.01353574]
[1674029626294,3.84789166,21289.0,21288.0,0.01353574]
[1674029626644,4.1824903,21289.0,21288.0,0.01353574]
[1674029626930,3.81927013,21289.0,21288.0,0.01353574]
[1674029627154,3.98953457,21289.0,21288.0,0.01353574]
[1674029627415,4.25545342,21289.0,21288.0,0.01353574]
[1674029627956,5.34252678,21289.0,21288.0,0.01353574]
[1674029628216,4.43171743,21289.0,21288.0,0.01353574]
[1674029628440,4.31945659,21289.0,21288.0,0.01353574]
[1674029629010,4.78918259,21289.0,21288.0,0.01353574]
[1674029629252,4.62095546,21289.0,21288.0,0.01353574]
[1674029629510,4.90144343,21289.0,21288.0,0.01353574]
[1674029629771,4.62095546,21289.0,21288.0,0.01353574]
[1674029630035,4.8524326,21289.0,21288.0,0.01353574]
[1674029630315,3.68819794,21289.0,21288.0,0.01353574]
[1674029630639,4.62810549,21289.0,21288.0,0.01353574]
[1674029630768,4.15792394,21289.0,21288.0,0.01353574]
[1674029631009,5.32222568,21289.0,21288.0,0.01353574]
[1674029631841,5.25887203,21289.0,21288.0,0.01353574]
[1674029632094,3.61985846,21289.0,21288.0,0.01353574]
[1674029632366,2.80774679,21289.0,21288.0,0.01353574]
[1674029632703,2.48689309,21289.0,21288.0,0.01353574]
[1674029632932,2.80774679,21289.0,21288.0,0.01353574]
[1674029633209,2.69764679,21289.0,21288.0,0.01353574]
[1674029633745,2.37280979,21289.0,21288.0,0.01353574]
[1674029633995,2.2133791,21289.0,21288.0,0.01353574]
[1674029634248,1.9041081,21289.0,21288.0,0.01353574]
[1674029634528,2.2251211,21289.0,21288.0,0.01353574]
[1674029635280,1.9041081,21289.0,21288.0,0.01353574]
[1674029635621,1.4730544,21289.0,21288.0,0.01353574]
[1674029635908,1.42602535,21289.0,21288.0,0.01353574]
[1674029637981,1.74687905,21289.0,21288.0,0.01353574]
[1674029638532,2.12152468,21289.0,21288.0,0.01353574]
[1674029639851,2.45425568,21289.0,21288.0,0.01353574]
[1674029640162,2.44581068,21289.0,21288.0,0.01353574]
[1674029640652,2.12152468,21289.0,21288.0,0.01353574]
[1674029640908,2.43917268,21289.0,21288.0,0.01353574]
[1674029641680,2.23368515,21289.0,21288.0,0.01353574]
[1674029641938,2.1866561,21289.0,21288.0,0.01353574]
[1674029642511,2.80888414,21289.0,21288.0,0.01353574]
[1674029642754,3.59880283,21289.0,21288.0,0.01353574]
[1674029643019,2.65935083,21289.0,21288.0,0.01353574]
[1674029643290,4.69593334,21289.0,21288.0,0.01353574]
[1674029643537,3.3589268,21289.0,21288.0,0.01353574]
[1674029644490,2.65892679,21289.0,21288.0,0.01353574]
[1674029645225,2.65892679,21289.0,21288.0,0.00787474]
[1674029645226,2.58382679,21289.0,21288.0,0.00787474]
[1674029645705,1.42602535,21289.0,21288.0,0.00787474]
[1674029645964,1.41752535,21289.0,21288.0,0.00787474]
[1674029648422,0.469726,21289.0,21288.0,0.00787474]
[1674029648697,0.083,21289.0,21288.0,0.08367474]
[1674029648940,0.082,21289.0,21288.0,0.08367474]
[1674029649210,0.80622581,21290.0,21288.0,0.08267474]
[1674029649488,0.009,21289.0,21288.0,0.01587474]
[1674029649762,1.20548614,21290.0,21288.0,0.00787474]
[1674029650023,0.477726,21289.0,21288.0,0.01587474]
[1674029650312,0.469726,21289.0,21288.0,0.00787474]
[1674029650567,0.478726,21289.0,21288.0,0.01587474]
[1674029650825,0.80624681,21290.0,21288.0,0.00787474]
[1674029651140,0.008,21289.0,21288.0,0.01587474]
[1674029651550,0.33652181,21290.0,21288.0,0.16414009]
[1674029651748,0.009,21289.0,21288.0,0.09704009]
[1674029652040,0.33652181,21290.0,21288.0,0.16384009]
[1674029652292,0.34552181,21290.0,21289.0,0.0751]
[1674029652547,0.81522681,21290.0,21289.0,0.0751]
[1674029652819,0.81522681,21290.0,21288.0,0.02194009]
[1674029653327,0.80622681,21290.0,21288.0,0.08894009]
[1674029653583,0.33952181,21290.0,21289.0,0.007]
[1674029653868,0.33652181,21290.0,21288.0,0.0751]
[1674029654190,0.34552181,21290.0,21289.0,0.0751]
[1674029654458,0.33652181,21290.0,21289.0,0.0751]
[1674029654751,0.33952181,21290.0,21289.0,0.0821]
[1674029655534,0.33952181,21290.0,21289.0,1.42252387]
[1674029655848,0.33952181,21290.0,21289.0,1.382052]
[1674029656386,0.33952181,21290.0,21289.0,1.532052]
[1674029656640,0.33652181,21290.0,21289.0,1.825052]
[1674029656913,0.34252181,21290.0,21289.0,1.555052]
[1674029657235,0.34252181,21290.0,21289.0,1.855052]
[1674029657526,0.11141166,21290.0,21289.0,1.705052]
[1674029658096,0.10541166,21290.0,21289.0,1.675052]
[1674029658362,0.10541166,21290.0,21289.0,1.762052]
[1674029658622,0.10541166,21290.0,21289.0,1.675052]
[1674029658875,0.09971166,21290.0,21289.0,1.675052]
[1674029659732,0.09971166,21290.0,21289.0,1.761052]
[1674029661851,0.16821432,21291.0,21289.0,2.045352]
[1674029662080,0.22439282,21292.0,21289.0,2.045352]
[1674029662081,0.22439282,21292.0,21290.0,1.6203]
[1674029662341,0.22439282,21292.0,21291.0,2.129346]
[1674029662549,0.22439282,21292.0,21291.0,1.844846]
[1674029662739,0.22439282,21292.0,21291.0,2.314528]
[1674029662993,0.22019282,21292.0,21291.0,2.314528]
[1674029663566,0.22019282,21292.0,21291.0,2.31460857]
[1674029664089,0.22119282,21292.0,21291.0,2.31460857]
[1674029664366,0.22119282,21292.0,21291.0,2.69960857]
[1674029664630,0.22119282,21292.0,21291.0,2.61460857]
[1674029664903,0.21859282,21292.0,21291.0,2.69960857]
[1674029665180,0.21959282,21292.0,21291.0,2.69960857]
[1674029665445,0.21759282,21292.0,21291.0,2.61460857]
[1674029666283,0.21759282,21292.0,21291.0,2.31460857]
[1674029666547,0.21859282,21292.0,21291.0,2.39960857]
[1674029666808,0.21859282,21292.0,21291.0,2.31460857]
[1674029667108,0.21959282,21292.0,21291.0,2.39460857]
[1674029668225,0.21539282,21292.0,21291.0,2.31460857]
[1674029668489,0.21639282,21292.0,21291.0,2.39460857]
[1674029669047,0.21639282,21292.0,21291.0,2.10880857]
[1674029670367,0.21449282,21292.0,21291.0,2.10880857]
[1674029670940,0.21449282,21292.0,21291.0,2.03320857]
[1674029672004,0.21349282,21292.0,21291.0,1.95320857]
[1674029672279,0.21449282,21292.0,21291.0,2.03320857]
[1674029672788,0.21449282,21292.0,21291.0,2.10830857]
[1674029674481,0.21449282,21292.0,21291.0,2.44878044]
[1674029674705,0.21449282,21292.0,21291.0,2.40830857]
[1674029676384,0.21449282,21292.0,21291.0,2.69370857]
[1674029677176,0.20779282,21292.0,21291.0,2.69370857]
[1674029677452,0.20779282,21292.0,21291.0,3.17091026]
[1674029678224,0.20679282,21292.0,21291.0,3.09091026]
[1674029679070,0.20679282,21292.0,21291.0,3.19291026]
[1674029682457,0.20679282,21292.0,21291.0,2.13030857]
[1674029682964,0.20679282,21292.0,21291.0,2.130228]
[1674029683234,0.20679282,21292.0,21291.0,1.585446]
[1674029683543,0.20679282,21292.0,21291.0,1.511046]
[1674029684337,0.20679282,21292.0,21291.0,1.585446]
[1674029686484,0.20679282,21292.0,21291.0,1.58560272]
[1674029689287,0.20679282,21292.0,21291.0,2.73955308]
[1674029689546,0.20679282,21292.0,21291.0,2.43955308]
[1674029689804,0.20679282,21292.0,21291.0,2.73955308]
[1674029690563,0.20679282,21292.0,21291.0,2.79531659]
[1674029691066,0.20679282,21292.0,21291.0,3.82548224]
[1674029691340,0.20679282,21292.0,21291.0,4.16164127]
[1674029692083,0.20679282,21292.0,21291.0,4.54105333]
[1674029692334,0.20679282,21292.0,21291.0,4.87753066]
[1674029692821,0.20679282,21292.0,21291.0,4.57753066]
[1674029693073,0.20679282,21292.0,21291.0,3.04347424]
[1674029693345,0.20679282,21292.0,21291.0,2.68758055]
[1674029693592,0.41784221,21292.0,21291.0,2.68758055]
[1674029694334,0.41784221,21292.0,21291.0,2.98758055]
[1674029695562,0.41784221,21292.0,21291.0,3.32373958]
[1674029696082,0.41784221,21292.0,21291.0,2.98758055]
[1674029696565,0.41784221,21292.0,21291.0,2.68758055]
[1674029696828,0.41784221,21292.0,21291.0,2.98758055]
[1674029697821,0.41784221,21292.0,21291.0,2.43281826]
[1674029699061,0.41784221,21292.0,21291.0,2.50791826]
[1674029699565,0.41784221,21292.0,21291.0,2.84407729]
[1674029700077,0.41774038,21292.0,21291.0,2.76897729]
[1674029702693,0.41774038,21292.0,21291.0,2.43281826]
[1674029702938,0.41774038,21292.0,21291.0,2.76897729]
[1674029703209,0.41774038,21292.0,21291.0,2.76890536]
[1674029703456,0.41774038,21292.0,21291.0,2.43274633]